[Event "Championnat du monde jeunes U12F"]
[Date "2024.11.16"]
[White "Kovalskyy, Alicia"]
[Black "Chovanec, Alice"]
[WhiteElo "1871"]
[BlackElo "1694"]
[Round "2.22"]
[Result "0-1"]
[TimeControl "5400+30"]

1. e4 {[%clk 1:30:59]} 1... c5 {[%clk 1:30:48]} 2. Nf3 {[%clk 1:31:23]} 2... e6
{[%clk 1:31:09]} 3. d4 {[%clk 1:31:49]} 3... cxd4 {[%clk 1:31:29]} 4. Nxd4
{[%clk 1:32:14]} 4... a6 {[%clk 1:31:45]} 5. Nc3 {[%clk 1:30:54]} 5... Qc7
{[%clk 1:31:55]} 6. a3 {[%clk 1:29:34]} 6... Nf6 {[%clk 1:31:38]} 7. Be3 {[%clk
1:23:09]} 7... b5 {[%clk 1:27:51]} 8. Be2 {[%clk 1:07:52]} 8... Bb7 {[%clk
1:26:26]} 9. f3 {[%clk 1:06:30]} 9... Be7 {[%clk 1:26:10]} 10. O-O {[%clk
1:05:38]} 10... O-O {[%clk 1:25:56]} 11. Bd3 {[%clk 0:59:28]} 11... d6 {[%clk
1:24:42]} 12. Qe1 {[%clk 0:53:28]} 12... Nbd7 {[%clk 1:24:06]} 13. Qg3 {[%clk
0:49:27]} 13... Kh8 {[%clk 1:21:58]} 14. Nce2 {[%clk 0:38:44]} 14... Rac8 {[%clk
1:18:50]} 15. Nf4 {[%clk 0:30:42]} 15... Nc5 {[%clk 0:59:16]} 16. Nh3 {[%clk
0:22:21]} 16... g6 {[%clk 0:53:05]} 17. Bh6 {[%clk 0:13:36]} 17... Nh5 {[%clk
0:49:16]} 18. Qf2 {[%clk 0:13:06]} 18... Rfe8 {[%clk 0:45:40]} 19. g4 {[%clk
0:08:14]} 19... Nf6 {[%clk 0:45:16]} 20. Ng5 {[%clk 0:05:36]} 20... Bf8 {[%clk
0:44:42]} 21. Bxf8 {[%clk 0:04:32]} 21... Rxf8 {[%clk 0:45:03]} 22. Rac1 {[%clk
0:02:15]} 22... e5 {[%clk 0:43:17]} 23. Ne2 {[%clk 0:02:24]} 23... Kg7 {[%clk
0:43:00]} 24. Ng3 {[%clk 0:02:03]} 24... h6 {[%clk 0:37:45]} 25. Nh3 {[%clk
0:02:08]} 25... d5 {[%clk 0:37:36]} 26. Qe3 {[%clk 0:01:47]} 26... dxe4 {[%clk
0:36:00]} 27. Nxe4 {[%clk 0:01:47]} 27... Bxe4 {[%clk 0:35:30]} 28. Bxe4 {[%clk
0:01:56]} 28... Ncxe4 {[%clk 0:35:21]} 29. fxe4 {[%clk 0:02:16]} 29... Nxg4
{[%clk 0:35:19]} 30. Qg3 {[%clk 0:02:13]} 30... Nf6 {[%clk 0:33:59]} 31. Qh4
{[%clk 0:02:14]} 31... Qb6+ {[%clk 0:33:25]} 32. Rf2 {[%clk 0:01:46]} 32... Rc4
{[%clk 0:32:31]} 0-1

[Variant "Standard"]
[Site "Europe Echecs"]

[Event "Championnat du monde jeunes U12F"]
[Date "2024.11.16"]
[White "Pavithra R V"]
[Black "Moscovitch, Shelly"]
[WhiteElo "1854"]
[BlackElo "1552"]
[Round "2.23"]
[Result "1-0"]
[TimeControl "5400+30"]

1. e4 {[%clk 1:30:58]} 1... e5 {[%clk 1:30:31]} 2. Nf3 {[%clk 1:31:21]} 2... Nc6
{[%clk 1:30:14]} 3. Bb5 {[%clk 1:31:27]} 3... a6 {[%clk 1:29:22]} 4. Bxc6 {[%clk
1:30:56]} 4... dxc6 {[%clk 1:28:35]} 5. O-O {[%clk 1:29:54]} 5... Bd6 {[%clk
1:27:41]} 6. d4 {[%clk 1:29:36]} 6... Bg4 {[%clk 1:24:43]} 7. dxe5 {[%clk
1:24:29]} 7... Bxf3 {[%clk 1:23:26]} 8. Qxf3 {[%clk 1:22:35]} 8... Bxe5 {[%clk
1:22:13]} 9. Rd1 {[%clk 1:21:20]} 9... Qe7 {[%clk 1:19:45]} 10. Qb3 {[%clk
1:18:11]} 10... Rb8 {[%clk 1:16:20]} 11. Be3 {[%clk 1:13:17]} 11... b5 {[%clk
1:10:13]} 12. f4 {[%clk 1:11:29]} 12... Bd6 {[%clk 1:04:04]} 13. Qc3 {[%clk
1:11:22]} 13... f6 {[%clk 0:53:42]} 14. Qxc6+ {[%clk 1:04:35]} 14... Kf7 {[%clk
0:48:56]} 15. Nc3 {[%clk 1:02:49]} 15... h5 {[%clk 0:41:22]} 16. Rf1 {[%clk
0:59:52]} 16... Qe8 {[%clk 0:38:58]} 17. Qxa6 {[%clk 0:57:27]} 17... b4 {[%clk
0:33:38]} 18. Qc4+ {[%clk 0:57:25]} 18... Kf8 {[%clk 0:31:58]} 19. Nd5 {[%clk
0:57:34]} 19... Qb5 {[%clk 0:31:09]} 20. Qxb5 {[%clk 0:57:02]} 20... Rxb5 {[%clk
0:31:28]} 21. Rad1 {[%clk 0:55:51]} 21... Ne7 {[%clk 0:29:13]} 22. Nxe7 {[%clk
0:51:59]} 22... Kxe7 {[%clk 0:29:23]} 23. c4 {[%clk 0:46:38]} 23... bxc3 {[%clk
0:27:43]} 24. bxc3 {[%clk 0:47:03]} 24... Ra5 {[%clk 0:26:22]} 25. Rf2 {[%clk
0:46:51]} 25... Rha8 {[%clk 0:25:34]} 26. Rdd2 {[%clk 0:47:09]} 26... Ra3 {[%clk
0:24:52]} 27. Rc2 {[%clk 0:46:46]} 27... Ke6 {[%clk 0:22:56]} 28. Kf1 {[%clk
0:45:59]} 28... Rb8 {[%clk 0:22:30]} 29. Ke2 {[%clk 0:46:04]} 29... Rd8 {[%clk
0:22:17]} 30. h3 {[%clk 0:45:36]} 30... Ra4 {[%clk 0:21:26]} 31. Kf3 {[%clk
0:45:17]} 31... Rda8 {[%clk 0:21:12]} 32. g4 {[%clk 0:45:11]} 32... hxg4+ {[%clk
0:21:06]} 33. hxg4 {[%clk 0:45:32]} 33... Rh8 {[%clk 0:20:46]} 34. Rh2 {[%clk
0:45:45]} 34... Rxh2 {[%clk 0:20:10]} 35. Rxh2 {[%clk 0:46:05]} 35... Ra3 {[%clk
0:20:22]} 36. Rc2 {[%clk 0:46:23]} 36... Kd7 {[%clk 0:18:57]} 37. Bc1 {[%clk
0:45:57]} 37... Ra4 {[%clk 0:18:59]} 38. f5 {[%clk 0:44:13]} 38... Ke7 {[%clk
0:18:26]} 39. Bf4 {[%clk 0:43:49]} 39... Bxf4 {[%clk 0:18:15]} 40. Kxf4 {[%clk
0:43:52]} 40... Ra5 {[%clk 0:18:19]} 41. c4 {[%clk 0:43:38]} 41... c6 {[%clk
0:17:47]} 42. Rb2 {[%clk 0:42:54]} 42... Ra4 {[%clk 0:17:19]} 43. Rb7+ {[%clk
0:42:39]} 43... Kf8 {[%clk 0:17:24]} 44. c5 {[%clk 0:43:03]} 44... Rc4 {[%clk
0:16:35]} 45. a4 {[%clk 0:43:27]} 45... Rxc5 {[%clk 0:16:05]} 46. Ra7 {[%clk
0:43:51]} 46... Rc1 {[%clk 0:15:29]} 47. a5 {[%clk 0:43:59]} 47... Rf1+ {[%clk
0:14:38]} 48. Ke3 {[%clk 0:44:22]} 48... Re1+ {[%clk 0:14:52]} 49. Kd4 {[%clk
0:44:47]} 49... c5+ {[%clk 0:13:05]} 50. Kd5 {[%clk 0:44:49]} 50... c4 {[%clk
0:12:22]} 51. a6 {[%clk 0:42:29]} 51... c3 {[%clk 0:10:13]} 52. Rc7 {[%clk
0:42:46]} 52... Ra1 {[%clk 0:09:14]} 53. Rxc3 {[%clk 0:42:08]} 53... Rxa6 {[%clk
0:09:30]} 54. Rc6 {[%clk 0:42:32]} 54... Ra4 {[%clk 0:08:53]} 55. Rc4 {[%clk
0:40:50]} 55... Ra6 {[%clk 0:08:53]} 56. e5 {[%clk 0:39:50]} 56... Ra5+ {[%clk
0:07:38]} 57. Rc5 {[%clk 0:40:18]} 57... Rxc5+ {[%clk 0:07:19]} 58. Kxc5 {[%clk
0:40:40]} 58... fxe5 {[%clk 0:07:43]} 59. Kd5 {[%clk 0:41:07]} 59... Kf7 {[%clk
0:07:34]} 60. Kxe5 {[%clk 0:41:30]} 60... Ke7 {[%clk 0:07:31]} 61. g5 {[%clk
0:41:53]} 61... Kf7 {[%clk 0:07:15]} 62. Kd6 {[%clk 0:42:11]} 62... g6 {[%clk
0:03:43]} 63. f6 {[%clk 0:42:14]} 63... Kf8 {[%clk 0:03:59]} 64. Ke6 {[%clk
0:42:03]} 64... Ke8 {[%clk 0:04:03]} 65. f7+ {[%clk 0:42:09]} 65... Kf8 {[%clk
0:03:45]} 66. Kd6 {[%clk 0:42:27]} 66... Kxf7 {[%clk 0:03:43]} 67. Kd7 {[%clk
0:42:54]} 67... Kf8 {[%clk 0:03:08]} 68. Ke6 {[%clk 0:43:22]} 68... Kg8 {[%clk
0:02:53]} 69. Kf6 {[%clk 0:43:48]} 69... Kh7 {[%clk 0:03:09]} 70. Kf7 {[%clk
0:44:14]} 70... Kh8 {[%clk 0:03:27]} 71. Kxg6 {[%clk 0:44:39]} 71... Kg8 {[%clk
0:03:39]} 72. Kh6 {[%clk 0:45:07]} 72... Kf7 {[%clk 0:03:31]} 73. g6+ {[%clk
0:45:31]} 73... Kg8 {[%clk 0:03:46]} 74. g7 {[%clk 0:45:57]} 1-0

[Variant "Standard"]
[Site "Europe Echecs"]

[Event "Championnat du monde jeunes U12F"]
[Date "2024.11.16"]
[White "Ivanova, Gabriela"]
[Black "Sunea, Sara Maria"]
[WhiteElo "1680"]
[BlackElo "1823"]
[Round "2.24"]
[Result "0-1"]
[TimeControl "5400+30"]

1. d4 {[%clk 1:30:56]} 1... Nf6 {[%clk 1:30:48]} 2. Nf3 {[%clk 1:30:52]} 2... c5
{[%clk 1:31:11]} 3. dxc5 {[%clk 1:30:21]} 3... e6 {[%clk 1:31:28]} 4. g3 {[%clk
1:29:48]} 4... Bxc5 {[%clk 1:31:38]} 5. Bg2 {[%clk 1:29:26]} 5... d5 {[%clk
1:31:23]} 6. O-O {[%clk 1:24:34]} 6... O-O {[%clk 1:31:19]} 7. Bf4 {[%clk
1:22:53]} 7... Nc6 {[%clk 1:29:49]} 8. Re1 {[%clk 1:20:18]} 8... Qb6 {[%clk
1:27:47]} 9. e3 Qxb2 {[%clk 1:22:12]} 10. Nbd2 Qb6 11. Rb1 {[%clk 1:01:12]}
11... Qd8 12. Ne5 {[%clk 0:40:49]} 12... Bd6 {[%clk 0:53:51]} 13. Nxc6 {[%clk
0:39:15]} 13... bxc6 {[%clk 0:54:14]} 14. Bxd6 {[%clk 0:39:32]} 14... Qxd6
{[%clk 0:54:43]} 15. c4 Ba6 16. e4 {[%clk 0:35:06]} 16... dxe4 {[%clk 0:41:41]}
17. Nxe4 {[%clk 0:34:05]} 17... Nxe4 {[%clk 0:40:44]} 18. Rxe4 {[%clk 0:32:30]}
18... Rad8 {[%clk 0:36:25]} 19. Qxd6 {[%clk 0:29:20]} 19... Rxd6 20. c5 {[%clk
0:29:13]} 20... Rd7 {[%clk 0:27:00]} 21. Ra4 {[%clk 0:27:09]} 21... Bb5 {[%clk
0:27:17]} 22. Ra5 {[%clk 0:27:28]} 22... Rfd8 {[%clk 0:23:44]} 23. Bf3 {[%clk
0:26:14]} 23... Rc7 {[%clk 0:23:03]} 24. a4 {[%clk 0:25:52]} 24... Bc4 {[%clk
0:23:05]} 25. Rb4 {[%clk 0:23:31]} 25... Bd5 {[%clk 0:22:25]} 26. Be2 {[%clk
0:22:35]} 26... Kf8 {[%clk 0:22:02]} 27. f4 {[%clk 0:15:56]} 27... Ke7 {[%clk
0:21:07]} 28. Ba6 {[%clk 0:14:51]} 28... Kf6 {[%clk 0:18:16]} 29. Bb7 {[%clk
0:13:01]} 29... Rdd7 {[%clk 0:09:48]} 30. Rxa7 {[%clk 0:12:40]} 30... Bc4 {[%clk
0:08:42]} 31. a5 {[%clk 0:09:32]} 31... Bb5 {[%clk 0:08:33]} 32. a6 {[%clk
0:08:55]} 32... Bxa6 {[%clk 0:07:13]} 33. Rxa6 {[%clk 0:09:12]} 33... Rxb7
{[%clk 0:07:41]} 34. Rxb7 {[%clk 0:09:31]} 34... Rxb7 {[%clk 0:08:10]} 35. Rxc6
{[%clk 0:09:49]} 35... Rb1+ {[%clk 0:08:39]} 36. Kg2 {[%clk 0:09:33]} 36... Rc1
{[%clk 0:08:55]} 37. Rc7 {[%clk 0:09:32]} 37... h5 {[%clk 0:08:02]} 38. c6
{[%clk 0:09:22]} 38... g6 {[%clk 0:08:18]} 39. Kh3 {[%clk 0:08:04]} 39... Rc2
{[%clk 0:08:27]} 40. Rc8 {[%clk 0:07:10]} 40... Kf5 {[%clk 0:05:49]} 41. Rc7
{[%clk 0:05:48]} 41... f6 {[%clk 0:05:56]} 42. Rc8 {[%clk 0:05:12]} 42... e5
{[%clk 0:02:56]} 43. fxe5 g5 {[%clk 0:02:53]} 44. g4+ {[%clk 0:03:06]} 44...
hxg4+ {[%clk 0:03:17]} 45. Kg3 {[%clk 0:03:28]} 45... Rc3+ {[%clk 0:03:13]} 46.
Kg2 {[%clk 0:03:35]} 46... Kxe5 {[%clk 0:03:22]} 47. c7 {[%clk 0:02:36]} 47...
Kf5 {[%clk 0:02:57]} 48. Kf2 {[%clk 0:02:25]} 48... g3+ {[%clk 0:02:19]} 49.
hxg3 {[%clk 0:02:35]} 49... Kg4 {[%clk 0:02:39]} 50. Rf8 {[%clk 0:00:45]} 50...
Rxc7 {[%clk 0:02:47]} 51. Rxf6 {[%clk 0:01:08]} 51... Rc2+ {[%clk 0:03:15]} 52.
Ke3 {[%clk 0:01:08]} 52... Kxg3 53. Kd4 0-1

[Variant "Standard"]
[Site "Europe Echecs"]

[Event "Championnat du monde jeunes U12F"]
[Date "2024.11.16"]
[White "Alcantara, Levanah"]
[Black "Wang, Tianmu"]
[WhiteElo "1753"]
[BlackElo "1640"]
[Round "2.25"]
[Result "1-0"]
[TimeControl "5400+30"]

1. d4 {[%clk 1:30:54]} 1... d5 {[%clk 1:30:51]} 2. Bf4 {[%clk 1:31:02]} 2... Nf6
{[%clk 1:31:09]} 3. e3 {[%clk 1:31:04]} 3... Bf5 {[%clk 1:31:24]} 4. c4 {[%clk
1:31:00]} 4... e6 {[%clk 1:31:22]} 5. Qb3 {[%clk 1:30:42]} 5... b6 {[%clk
1:30:01]} 6. Nc3 {[%clk 1:29:12]} 6... a6 {[%clk 1:28:40]} 7. Nf3 {[%clk
1:26:41]} 7... Be7 {[%clk 1:25:32]} 8. Be2 {[%clk 1:23:49]} 8... O-O {[%clk
1:23:38]} 9. Nh4 {[%clk 1:18:43]} 9... Bg6 {[%clk 1:20:01]} 10. Nxg6 {[%clk
1:18:22]} 10... hxg6 {[%clk 1:19:45]} 11. cxd5 {[%clk 1:16:50]} 11... exd5
{[%clk 1:18:40]} 12. h4 {[%clk 1:12:39]} 12... c6 {[%clk 1:02:48]} 13. h5 {[%clk
1:02:26]} 13... Nh7 {[%clk 0:53:58]} 14. hxg6 {[%clk 0:51:05]} 14... fxg6 {[%clk
0:53:36]} 15. Qc2 {[%clk 0:50:36]} 15... Qe8 {[%clk 0:51:29]} 16. Bd3 {[%clk
0:48:43]} 16... Rf6 {[%clk 0:49:57]} 17. O-O-O {[%clk 0:39:00]} 17... Nd7 {[%clk
0:48:50]} 18. Rh3 {[%clk 0:38:20]} 18... b5 {[%clk 0:45:32]} 19. Rdh1 {[%clk
0:36:24]} 19... Ndf8 {[%clk 0:44:13]} 20. Be5 {[%clk 0:35:30]} 20... Re6 {[%clk
0:40:17]} 21. Be2 {[%clk 0:32:55]} 21... Bb4 {[%clk 0:34:09]} 22. a3 {[%clk
0:28:22]} 22... Bxc3 {[%clk 0:32:33]} 23. Qxc3 {[%clk 0:27:44]} 23... Rd8 {[%clk
0:29:58]} 24. Bg4 {[%clk 0:24:09]} 24... Re7 {[%clk 0:28:29]} 25. Qc5 {[%clk
0:23:41]} 25... Rf7 {[%clk 0:24:53]} 26. f4 {[%clk 0:20:45]} 26... Re7 {[%clk
0:23:15]} 27. Kd2 {[%clk 0:18:23]} 27... Nf6 {[%clk 0:17:48]} 28. Bxf6 {[%clk
0:16:37]} 28... gxf6 {[%clk 0:18:03]} 29. f5 {[%clk 0:13:55]} 29... Re4 {[%clk
0:16:01]} 30. Bf3 {[%clk 0:11:01]} 30... Re7 {[%clk 0:13:35]} 31. Rh8+ {[%clk
0:10:24]} 31... Kg7 {[%clk 0:12:54]} 32. fxg6 {[%clk 0:10:18]} 32... Rdd7 {[%clk
0:11:01]} 33. Bg4 {[%clk 0:09:43]} 33... Rc7 {[%clk 0:07:19]} 34. Bf5 {[%clk
0:08:52]} 34... a5 {[%clk 0:06:43]} 35. Qd6 {[%clk 0:08:58]} 35... Rb7 {[%clk
0:06:06]} 36. Qh2 {[%clk 0:09:03]} 36... Rxe3 {[%clk 0:01:16]} 37. Qh6# {[%clk
0:09:23]} 1-0

[Variant "Standard"]
[Site "Europe Echecs"]

[Event "Championnat du monde jeunes U12F"]
[Date "2024.11.16"]
[White "Anu, Bayart-Uchral"]
[Black "Lukin, Yesenia"]
[WhiteElo "1624"]
[BlackElo "1732"]
[Round "2.26"]
[Result "1-0"]
[TimeControl "5400+30"]

1. d4 {[%clk 1:30:57]} 1... d5 {[%clk 1:30:25]} 2. c4 {[%clk 1:31:11]} 2... c6
{[%clk 1:30:41]} 3. Nc3 {[%clk 1:31:08]} 3... Nf6 {[%clk 1:30:29]} 4. e3 {[%clk
1:31:15]} 4... e6 {[%clk 1:30:10]} 5. Nf3 {[%clk 1:31:28]} 5... g6 {[%clk
1:29:09]} 6. Ne5 {[%clk 1:30:49]} 6... Bg7 {[%clk 1:25:50]} 7. Bd3 {[%clk
1:27:35]} 7... Nbd7 {[%clk 1:22:07]} 8. f4 {[%clk 1:26:53]} 8... dxc4 {[%clk
1:14:14]} 9. Bxc4 {[%clk 1:19:02]} 9... Nb6 {[%clk 1:08:52]} 10. O-O {[%clk
1:16:39]} 10... Nxc4 {[%clk 1:06:09]} 11. Nxc4 {[%clk 1:17:02]} 11... O-O {[%clk
1:06:19]} 12. b3 {[%clk 1:13:28]} 12... b6 {[%clk 1:00:23]} 13. Ba3 {[%clk
1:09:20]} 13... c5 {[%clk 0:42:00]} 14. Rc1 {[%clk 1:05:16]} 14... Nd7 {[%clk
0:32:59]} 15. dxc5 {[%clk 1:03:28]} 15... Nxc5 {[%clk 0:29:02]} 16. Bxc5 {[%clk
1:01:58]} 16... bxc5 {[%clk 0:29:07]} 17. Na4 {[%clk 0:59:41]} 17... Qe7 {[%clk
0:25:41]} 18. Na5 {[%clk 0:54:03]} 18... Ba6 {[%clk 0:21:17]} 19. Rf2 {[%clk
0:48:33]} 19... Rac8 {[%clk 0:16:54]} 20. Rfc2 {[%clk 0:47:27]} 20... Rfd8
{[%clk 0:16:05]} 21. Qe1 {[%clk 0:42:39]} 21... Bd3 {[%clk 0:12:47]} 22. Rxc5
{[%clk 0:40:53]} 22... Rxc5 {[%clk 0:11:54]} 23. Nxc5 {[%clk 0:36:40]} 23... Bb2
{[%clk 0:11:32]} 24. Nc6 {[%clk 0:36:59]} 24... Qe8 {[%clk 0:10:28]} 25. Nxd8
{[%clk 0:37:09]} 25... Bxc1 {[%clk 0:10:37]} 26. Nxd3 {[%clk 0:37:06]} 26... Ba3
{[%clk 0:10:17]} 27. Nxf7 {[%clk 0:34:14]} 27... Qxf7 {[%clk 0:07:56]} 28. Qc3
{[%clk 0:33:50]} 28... Qd7 {[%clk 0:03:53]} 29. b4 {[%clk 0:26:35]} 29... Qa4
{[%clk 0:02:18]} 30. Kf2 {[%clk 0:26:48]} 30... Qa6 {[%clk 0:00:33]} 31. Nc5
{[%clk 0:26:11]} 31... Bxb4 {[%clk 0:00:38]} 32. Qxb4 {[%clk 0:25:58]} 32...
Qxa2+ {[%clk 0:01:01]} 33. Kg3 {[%clk 0:26:17]} 33... h5 {[%clk 0:00:37]} 34.
Qb3 {[%clk 0:26:32]} 34... Qxb3 {[%clk 0:00:31]} 35. Nxb3 {[%clk 0:26:56]} 35...
Kf7 {[%clk 0:00:57]} 36. Kf3 {[%clk 0:27:11]} 36... Ke7 {[%clk 0:00:41]} 37. Ke4
{[%clk 0:27:36]} 37... Kd6 {[%clk 0:00:59]} 38. Kd4 {[%clk 0:28:01]} 38... a6
{[%clk 0:00:34]} 39. Na5 {[%clk 0:28:26]} 39... h4 {[%clk 0:00:50]} 40. g3
{[%clk 0:28:43]} 40... h3 {[%clk 0:00:34]} 41. e4 {[%clk 0:28:54]} 41... Kd7
{[%clk 0:00:37]} 42. g4 {[%clk 0:29:12]} 42... Kd6 {[%clk 0:00:51]} 43. f5
{[%clk 0:28:48]} 43... e5+ {[%clk 0:01:02]} 44. Kc4 {[%clk 0:29:13]} 44... g5
{[%clk 0:01:11]} 45. f6 {[%clk 0:29:26]} 45... Ke6 {[%clk 0:01:30]} 46. f7
{[%clk 0:29:53]} 46... Kxf7 {[%clk 0:01:50]} 47. Kd5 {[%clk 0:30:17]} 47... Kf6
{[%clk 0:02:08]} 48. Kd6 {[%clk 0:30:43]} 1-0

[Variant "Standard"]
[Site "Europe Echecs"]

[Event "Championnat du monde jeunes U12F"]
[Date "2024.11.16"]
[White "Zavivaeva, Angelina"]
[Black "Ribreau, Anna"]
[WhiteElo "1499"]
[BlackElo "1726"]
[Round "2.27"]
[Result "1/2-1/2"]
[TimeControl "5400+30"]

1. e4 {[%clk 1:30:57]} 1... d6 {[%clk 1:29:00]} 2. d4 {[%clk 1:31:22]} 2... Nf6
{[%clk 1:29:11]} 3. Nc3 {[%clk 1:31:31]} 3... c6 {[%clk 1:28:58]} 4. f3 {[%clk
1:30:35]} 4... Nbd7 {[%clk 1:27:02]} 5. Be3 {[%clk 1:28:15]} 5... e5 {[%clk
1:25:48]} 6. Qd2 {[%clk 1:25:47]} 6... Be7 {[%clk 1:21:45]} 7. O-O-O {[%clk
1:19:06]} 7... b5 {[%clk 1:19:42]} 8. d5 {[%clk 1:11:58]} 8... cxd5 {[%clk
1:01:28]} 9. Nxd5 {[%clk 1:06:44]} 9... Nxd5 {[%clk 0:59:28]} 10. Qxd5 {[%clk
1:06:17]} 10... Ba6 {[%clk 0:58:07]} 11. Qc6 {[%clk 1:02:59]} 11... Qc8 {[%clk
0:55:25]} 12. Bxb5 {[%clk 0:59:48]} 12... Bxb5 {[%clk 0:55:31]} 13. Qxb5 {[%clk
0:59:34]} 13... Rb8 {[%clk 0:55:37]} 14. Qa4 {[%clk 0:53:27]} 14... Qb7 {[%clk
0:54:39]} 15. Qb3 {[%clk 0:49:44]} 15... Qa6 {[%clk 0:51:20]} 16. Qa3 {[%clk
0:42:05]} 16... Qb7 {[%clk 0:48:59]} 17. b3 {[%clk 0:35:19]} 17... a6 {[%clk
0:46:01]} 18. Qb2 {[%clk 0:32:01]} 18... O-O {[%clk 0:42:58]} 19. h4 {[%clk
0:30:42]} 19... Rfc8 {[%clk 0:41:27]} 20. Ne2 {[%clk 0:26:25]} 20... Nb6 {[%clk
0:40:57]} 21. Bxb6 {[%clk 0:24:58]} 21... Qxb6 {[%clk 0:41:21]} 22. Rd2 {[%clk
0:22:28]} 22... a5 {[%clk 0:39:11]} 23. Nc3 {[%clk 0:20:12]} 23... Qb7 {[%clk
0:31:35]} 24. g3 {[%clk 0:10:28]} 24... g5 {[%clk 0:26:35]} 25. Nd5 {[%clk
0:07:50]} 25... a4 {[%clk 0:23:35]} 26. hxg5 {[%clk 0:07:51]} 26... Bxg5 {[%clk
0:18:04]} 27. f4 {[%clk 0:08:06]} 27... Bd8 {[%clk 0:17:35]} 28. Rd3 {[%clk
0:05:56]} 28... f6 {[%clk 0:15:50]} 29. f5 {[%clk 0:04:28]} 29... Qg7 {[%clk
0:12:07]} 30. Qa3 {[%clk 0:03:56]} 30... axb3 {[%clk 0:11:45]} 31. Rxb3 {[%clk
0:03:03]} 31... Qg5+ {[%clk 0:10:28]} 32. Kb1 {[%clk 0:02:25]} 32... Qd2 {[%clk
0:08:52]} 33. Qb2 {[%clk 0:01:07]} 33... Qg2 {[%clk 0:04:14]} 34. Re1 {[%clk
0:01:01]} 34... Qf2 {[%clk 0:04:32]} 35. Rc1 {[%clk 0:01:00]} 35... Qa7 {[%clk
0:04:16]} 36. Rh1 {[%clk 0:00:49]} 36... Rxb3 {[%clk 0:03:59]} 37. cxb3 {[%clk
0:00:42]} 37... Qg7 {[%clk 0:03:35]} 38. Qh2 {[%clk 0:00:36]} 38... Be7 {[%clk
0:03:20]} 39. g4 {[%clk 0:00:36]} 39... Rb8 {[%clk 0:03:19]} 40. Qh6 {[%clk
0:00:43]} 40... Qf7 {[%clk 0:03:20]} 41. Rc1 {[%clk 0:00:46]} 41... Bd8 {[%clk
0:02:17]} 42. Kb2 {[%clk 0:00:40]} 42... Ra8 {[%clk 0:01:34]} 43. Qh5 {[%clk
0:00:41]} 43... Qd7 {[%clk 0:01:39]} 44. Qh6 {[%clk 0:00:36]} 44... Qf7 {[%clk
0:01:56]} 45. Rc4 {[%clk 0:00:47]} 45... Qa7 {[%clk 0:01:56]} 46. a4 {[%clk
0:00:38]} 46... Qf2+ {[%clk 0:01:52]} 47. Ka3 {[%clk 0:00:39]} 47... Qg1 {[%clk
0:01:44]} 48. Nxf6+ {[%clk 0:00:34]} 48... Bxf6 {[%clk 0:02:06]} 49. Qxf6 {[%clk
0:00:58]} 49... Qa1+ {[%clk 0:02:21]} 50. Kb4 {[%clk 0:01:28]} 50... Qe1+ {[%clk
0:02:44]} 51. Kb5 {[%clk 0:01:02]} 51... Qa5+ {[%clk 0:03:03]} 52. Kc6 {[%clk
0:01:12]} 52... Qa6+ {[%clk 0:03:17]} 53. Kd5 {[%clk 0:01:08]} 53... Qb7+ {[%clk
0:03:23]} 54. Kxd6 {[%clk 0:01:07]} 54... Ra6+ {[%clk 0:03:49]} 55. Kxe5 {[%clk
0:01:28]} 55... Rxf6 {[%clk 0:04:13]} 56. Kxf6 {[%clk 0:01:55]} 56... Qb6+
{[%clk 0:04:29]} 57. Ke7 {[%clk 0:01:53]} 57... Qb7+ {[%clk 0:04:58]} 58. Kf6
{[%clk 0:01:58]} 58... Qb6+ {[%clk 0:05:17]} 59. Ke7 {[%clk 0:01:03]} 59... Qb7+
{[%clk 0:05:46]} 60. Kf6 {[%clk 0:00:51]} 60... Qb6+ {[%clk 0:05:44]} 61. Ke7
{[%clk 0:00:34]} 61... Qb7+ {[%clk 0:06:10]} 62. Kf6 {[%clk 0:00:34]} 62... Qb6+
{[%clk 0:06:34]} 63. Ke5 1/2-1/2

[Variant "Standard"]
[Site "Europe Echecs"]

[Event "Championnat du monde jeunes U12F"]
[Date "2024.11.16"]
[White "Istratova, Nika"]
[Black "Tong Thai Hoang An"]
[WhiteElo "1473"]
[BlackElo "1869"]
[Round "2.28"]
[Result "0-1"]
[TimeControl "5400+30"]

1. e4 {[%clk 1:30:59]} 1... c5 {[%clk 1:30:21]} 2. Nf3 {[%clk 1:31:23]} 2... d6
{[%clk 1:30:47]} 3. d4 {[%clk 1:31:46]} 3... cxd4 {[%clk 1:31:12]} 4. Nxd4
{[%clk 1:32:11]} 4... Nf6 {[%clk 1:31:35]} 5. Nc3 {[%clk 1:32:22]} 5... a6
{[%clk 1:31:59]} 6. Be3 {[%clk 1:32:41]} 6... e5 {[%clk 1:31:55]} 7. Nb3 {[%clk
1:33:00]} 7... Be6 {[%clk 1:31:53]} 8. Be2 {[%clk 1:32:17]} 8... Be7 {[%clk
1:31:02]} 9. O-O {[%clk 1:32:26]} 9... O-O {[%clk 1:30:14]} 10. Bf3 {[%clk
1:29:47]} 10... Nbd7 {[%clk 1:22:06]} 11. Nd5 {[%clk 1:22:13]} 11... Rc8 {[%clk
1:17:27]} 12. Nxe7+ {[%clk 1:18:03]} 12... Qxe7 {[%clk 1:17:46]} 13. Re1 {[%clk
1:12:53]} 13... Rfd8 {[%clk 1:10:29]} 14. c3 {[%clk 1:05:00]} 14... h6 {[%clk
1:06:56]} 15. Qd2 {[%clk 0:59:32]} 15... Nf8 {[%clk 0:59:30]} 16. h3 {[%clk
0:53:25]} 16... Ng6 {[%clk 0:55:50]} 17. Bb6 {[%clk 0:35:17]} 17... Rd7 {[%clk
0:55:12]} 18. Qe3 {[%clk 0:30:19]} 18... d5 {[%clk 0:49:15]} 19. Nc5 {[%clk
0:22:23]} 19... d4 {[%clk 0:43:57]} 20. cxd4 {[%clk 0:21:47]} 20... exd4 {[%clk
0:43:33]} 21. Qa3 {[%clk 0:19:18]} 21... Rd6 {[%clk 0:40:53]} 22. Nxe6 {[%clk
0:13:03]} 22... Rxb6 {[%clk 0:34:00]} 23. Nxd4 {[%clk 0:11:16]} 23... Qe5 {[%clk
0:27:15]} 24. Rad1 {[%clk 0:06:56]} 24... Nh4 {[%clk 0:22:47]} 25. Re2 {[%clk
0:05:00]} 25... Rd6 {[%clk 0:20:30]} 26. Qe3 {[%clk 0:03:23]} 26... Nxf3+ {[%clk
0:16:22]} 27. gxf3 {[%clk 0:03:39]} 27... Nh5 {[%clk 0:15:16]} 28. Red2 {[%clk
0:02:05]} 28... Nf4 {[%clk 0:13:35]} 29. h4 {[%clk 0:01:37]} 29... Rg6+ {[%clk
0:12:02]} 30. Kf1 {[%clk 0:00:57]} 30... Nh3 {[%clk 0:05:05]} 31. Ke2 {[%clk
0:00:40]} 31... Rg2 {[%clk 0:02:25]} 32. Rf1 {[%clk 0:00:52]} 32... Qh2 {[%clk
0:01:59]} 33. Kd3 {[%clk 0:00:38]} 33... Nf4+ {[%clk 0:02:16]} 34. Qxf4 {[%clk
0:00:39]} 34... Qxf4 {[%clk 0:02:41]} 35. Rc2 {[%clk 0:01:01]} 35... Rxc2 {[%clk
0:03:05]} 36. Kxc2 {[%clk 0:01:22]} 36... Qxh4 {[%clk 0:03:11]} 37. Nf5 {[%clk
0:01:34]} 37... Rxf2+ {[%clk 0:03:33]} 38. Kb3 {[%clk 0:01:22]} 38... Qh2 {[%clk
0:03:56]} 39. Rxf2 {[%clk 0:01:23]} 39... Qxf2 {[%clk 0:04:21]} 40. Ne7+ {[%clk
0:01:42]} 40... Kh7 {[%clk 0:04:47]} 41. e5 {[%clk 0:01:23]} 41... Qxf3+ {[%clk
0:05:10]} 42. Kb4 {[%clk 0:01:36]} 42... Qe4+ {[%clk 0:05:36]} 0-1

[Variant "Standard"]
[Site "Europe Echecs"]